[Event "13th Chennai Open 2022"]
[Site "Chennai"]
[Date "2022.06.24"]
[Round "8.6"]
[White "Stupak, Kirill"]
[Black "Saravana, Krishnan P."]
[Result "1/2-1/2"]
[ECO "E04"]
[WhiteElo "2440"]
[BlackElo "2269"]
[Annotator "TA"]
[PlyCount "77"]
[EventDate "2022.06.19"]
[EventType "swiss"]
[EventCountry "IND"]
[SourceTitle "playchess.com"]
[Source "ChessBase"]
[SourceQuality "1"]
[TimeControl "5400+30"]

{[%evp 12,77,2,-7,12,0,0,0,0,0,0,0,0,0,0,-37,-35,-87,-84,-72,-70,-70,-71,-75,-73,-88,-88,-87,-81,-79,-105,-159,-108,-100,0,0,0,0,0,0,0,-9,0,0,0,0,0,0,0,0,0,0,0,0,0,-51,53,0,0,-20,-15,-49,0,-42,0,0,0,0]} 1. d4 {[%emt 0:01:14]} d5 {[%emt 0:00:14]} 2. c4 {[%emt 0:00:13]} c6 {[%emt 0:00:10]} 3. Nf3 {[%emt 0:00:11]} Nf6 {[%emt 0:00:33]} 4. Nc3 {[%emt 0:00:06]} e6 {[%emt 0:00:53]} 5. g3 {[%emt 0:01:08]} dxc4 {[%emt 0:00:53]} 6. Bg2 {[%emt 0:00:02]} b5 {[%emt 0:01:11][%cal Bb7b5,Bb5b4][%mdl 32]} 7. Ne5 {[%emt 0:03:50]} a6 {[%emt 0:00:54] E04: Open Catalan: 5 Nf3.} 8. O-O {[%emt 0:19:51]} Bb7 {[%emt 0:01:45]} 9. b3 {[%emt 0:00:14]} b4 {[%emt 0:01:15]} 10. Ne4 {[%emt 0:02:34]} Nxe4 {[%emt 0:01:38]} 11. Bxe4 {[%emt 0:00:10]} c3 {[%emt 0:00:12]} 12. a3 {[%emt 0:18:20]} a5 $1 {[%emt 0:03:10]} 13. Qd3 $1 {[%emt 0:00:37][%mdl 4] is recently more successful than 13.axb4.} Bd6 {[%emt 0:02:19] [#]} 14. axb4 $146 {[%emt 0:15:58] [#]} (14. Bf4 $15) ({Predecessor:} 14. Bf4 g5 15. Be3 f5 16. Bxf5 Bxe5 17. dxe5 exf5 18. Qxf5 Bc8 19. e6 Qe7 20. axb4 Bxe6 21. Qe5 {½-½ (21) Petrov,N (2559)-Lobanov,S (2516) Yerevan 2022}) 14... f5 $1 $17 {[%emt 0:12:58]} 15. Bg2 {[%emt 0:05:09]} Bxe5 {[%emt 0:00:30]} 16. dxe5 {[%emt 0:00:30] Threatens to win with Qxd8+.} Qxd3 {[%emt 0:00:30]} ({Resist} 16... axb4 17. Rxa8 Bxa8 18. Qc4 $14) 17. exd3 {[%emt 0:00:30]} axb4 {[%emt 0:00:30]} 18. Rxa8 {[%emt 0:00:30]} Bxa8 {[%emt 0:00:30]} 19. Be3 {[%emt 0:00:30]} Kd7 {[%emt 0:00:30]} 20. Ra1 {[%emt 0:00:30] Against Na6} Bb7 {[%emt 0:00:30]} 21. Bb6 {[%emt 0:00:30] [#]} (21. Kf1 $142) 21... Na6 {[%emt 0:00:30]} ({Better is} 21... Kc8 $1 22. Be3 Nd7) 22. Kf1 {[%emt 0:00:30]} Ra8 {[%emt 0:00:30]} (22... Kc8 $17 {And now ...c5 would win.} 23. Ke1 c5) 23. Ke1 $1 $11 {[%emt 0:00:30]} Kc8 {[%emt 0:00:30] ...c5 is the strong threat.} 24. d4 {[%emt 0:00:30] Prevents c5.} c5 {[%emt 0:00:30]} 25. Bf1 {[%emt 0:00:30]} cxd4 {[%emt 0:00:30]} 26. Bxd4 {[%emt 0:00:30]} Nc7 {[%emt 0:00:30]} 27. Rxa8+ {[%emt 0:00:30]} Bxa8 {[%emt 0:00:30][%mdl 4096] Endgame KBB-KBN} 28. Bc5 $1 {[%emt 0:00:30]} Bd5 {[%emt 0:00:30]} 29. Bxb4 {[%emt 0:00:30]} c2 {[%emt 0:00:30]} 30. Kd2 {[%emt 0:00:30]} Bxb3 {[%emt 0:00:30]} 31. Bd3 {[%emt 0:00:30]} Kd7 {[%emt 0:00:30]} 32. Ba3 {[%emt 0:00:30]} Kc6 {[%emt 0:00:30]} 33. Ke3 {[%emt 0:00:30]} (33. Kc3 $11 Bd5 34. Bb2 (34. Kxc2 Be4 $11)) 33... Bd5 {[%emt 0:00:30]} (33... Nb5 $15 34. Bb2 g5) 34. Bc1 {[%emt 0:00:30]} (34. Bxc2 $14 Nb5 35. Bf8) 34... Be4 {[%emt 0:00:30]} 35. Be2 {[%emt 0:00:30]} Nd5+ {[%emt 0:00:30]} 36. Kd4 {[%emt 0:00:30] aiming for f3.} Nc7 (36... Nb4 $1 $15 {feels stronger.} 37. Bc4 h6) 37. Kc3 {[%emt 0:27:49]} Nd5+ {[%emt 1:00:59]} 38. Kc4 {[%emt 0:00:31]} Nb6+ {[%emt 0:00:24]} 39. Kb4 {[%emt 0:00:37] Weighted Error Value: White=0.11 (very precise) /Black=0.16 (very precise)} 1/2-1/2

[Event "13th Chennai Open 2022"]
[Site "Chennai"]
[Date "2022.06.24"]
[Round "8.7"]
[White "Hirthickkesh PR"]
[Black "Ajay Karthikeyan"]
[Result "1/2-1/2"]
[ECO "A01"]
[WhiteElo "2232"]
[BlackElo "2436"]
[Annotator "TA"]
[PlyCount "102"]
[EventDate "2022.06.19"]
[EventType "swiss"]
[EventCountry "IND"]
[SourceTitle "playchess.com"]
[Source "ChessBase"]
[SourceQuality "1"]
[TimeControl "5400+30"]

{[%evp 9,102,2,5,5,26,0,23,17,22,9,23,14,20,22,15,18,13,15,20,17,18,0,0,-43,-43,-47,-52,-76,-56,-128,-40,-40,0,0,0,0,0,0,0,0,0,-22,0,-13,0,-37,-27,-89,-89,-91,-90,-86,-79,-192,-201,-189,-189,-200,-197,-197,-202,-207,-122,-122,-33,-35,0,-7,0,0,0,0,0,0,0,0,0,0,0,0,0,0,0,0,0,0,0,0,0,0,0,0,0,0,0]} 1. b3 {[%emt 0:00:05]} e5 {[%emt 0:00:28]} 2. Bb2 {[%emt 0:00:05]} Nc6 {[%emt 0:00:05]} 3. e3 {[%emt 0:00:07]} Nf6 {[%emt 0:00:19]} 4. Bb5 {[%emt 0:00:56]} Qe7 {[%emt 0:00:48]} 5. Ne2 {[%emt 0:03:50]} a6 {[%emt 0:00:16]} 6. Bxc6 {[%emt 0:00:15] A01: Nimzowitsch-Larsen Opening.} dxc6 {[%emt 0:00:02]} 7. d3 {[%emt 0:05:02]} e4 {[%emt 0:09:25]} 8. Nbc3 {[%emt 0:05:54] [#] White has an edge.} Bf5 $146 {[%emt 0:09:17]} ({Predecessor:} 8... Bg4 9. dxe4 Rd8 {½-½ (9) Sosovicka,J (2123)-Macka,O (2031) Slovakia 2018}) 9. Ng3 {[%emt 0:07:24]} Bg4 {[%emt 0:02:38]} 10. Qd2 {[%emt 0:00:54][%cal Rg3e4]} exd3 {[%emt 0:00:51]} 11. f3 {[%emt 0:12:19]} Be6 {[%emt 0:12:37]} 12. Qxd3 {[%emt 0:00:33]} Rd8 {[%emt 0:01:46]} 13. Qe2 {[%emt 0:00:30]} Qb4 {[%emt 0:00:30]} 14. O-O {[%emt 0:00:30]} Be7 {[%emt 0:00:30]} 15. Nce4 {[%emt 0:00:30]} Nxe4 {[%emt 0:00:30]} 16. fxe4 {[%emt 0:00:30]} O-O {[%emt 0:00:30]} 17. Qf3 {[%emt 0:00:30]} f6 {[%emt 0:00:30]} 18. Nh5 {[%emt 0:00:30]} Bf7 {[%emt 0:00:30]} (18... Qc5 $5 {[%cal Re6f7]}) 19. e5 {[%emt 0:00:30] [#]} ({Avoid the trap} 19. Nxg7 $2 Kxg7 20. e5 (20. Bxf6+ $2 Bxf6 21. Qxf6+ Kg8 $19) 20... Kh8 21. exf6 Bc5 $19) (19. Ng3 $15) 19... Bxh5 {[%emt 0:00:30]} (19... fxe5 $1 $17 20. a3 Qh4) 20. Qxh5 $15 {[%emt 0:00:30]} Qe4 {[%emt 0:00:30][%csl LRc2,LRe3] ...Rd2 is the strong threat.} (20... f5 {seems wilder.} 21. Rxf5 Qd2 22. Rxf8+ Rxf8 23. Qd1 Qxe3+ 24. Kh1 Qe4) 21. exf6 $1 {[%emt 0:00:30] Threatens to win with Qg5.} Bxf6 {[%emt 0:00:30]} 22. Bxf6 {[%emt 0:00:30]} Qxe3+ {[%emt 0:00:30]} 23. Kh1 {[%emt 0:00:30]} Rxf6 {[%emt 0:00:30]} 24. Rxf6 {[%emt 0:00:30]} gxf6 $40 {[%emt 0:00:30][%mdl 128] Black attacks.} 25. Rd1 {[%emt 0:00:30]} Rxd1+ {[%emt 0:00:30]} 26. Qxd1 $11 {[%emt 0:00:30][%mdl 4096] Endgame KQ-KQ} Kf7 {[%emt 0:00:30]} 27. Qh5+ {[%emt 0:00:30]} Kf8 {[%emt 0:00:30][%cal Re3e1]} 28. Qd1 {[%emt 0:00:30] Inhibits Qe1+.} (28. h3 $1 $11) 28... Ke7 $17 {[%emt 0:00:30]} 29. h3 {[%emt 0:00:30]} Qe4 {[%emt 0:00:30]} 30. Qd2 {[%emt 0:00:30]} b6 {[%emt 0:00:30]} 31. Qh6 {[%emt 0:00:30]} (31. c4 $17) 31... Qxc2 $19 {[%emt 0:00:30]} 32. Qg7+ {[%emt 0:00:30]} Ke6 {[%emt 0:00:30]} 33. Qg8+ {[%emt 0:00:30]} Kd7 {[%emt 0:00:30]} 34. Qg4+ {[%emt 0:00:30]} Kd6 {[%emt 0:00:30]} 35. Qf4+ {[%emt 0:00:30]} Ke6 {[%emt 0:00:30]} (35... Kc5 $19 36. Qa4 Qe2 37. Qa3+ Kd4 38. Qb4+ Kd5) 36. Qg4+ $17 {[%emt 0:00:30] [#]} f5 {[%emt 0:00:30]} ({Black should try} 36... Qf5 $1 $17 {[%cal Rf5g4] aiming for ...Qxg4.} 37. Qe2+ Kd7 38. Qxa6 b5) 37. Qg8+ $15 {[%emt 0:00:30]} Kf6 {[%emt 0:00:30]} (37... Kd6 $5 {[%cal Rc2a2]} 38. Qd8+ Kc5 39. Qe7+ Kd4 40. Qxc7 b5 $11) 38. Qxh7 {[%emt 0:00:30] The position is equal.} Qxa2 {[%emt 0:00:30]} 39. Qh6+ {[%emt 0:00:30]} Ke7 {[%emt 0:00:30]} 40. Qg7+ {[%emt 0:00:30]} Ke6 {[%emt 0:00:30]} 41. h4 {[%emt 0:00:30]} Qf2 {[%emt 0:00:30]} 42. Qg6+ {[%emt 0:00:30]} Ke7 {[%emt 0:00:30]} 43. Qg7+ {[%emt 0:00:30]} Ke6 {[%emt 0:00:30]} 44. Qg6+ {[%emt 0:00:30]} Ke5 {[%emt 0:00:30]} 45. h5 {[%emt 0:00:30]} Qh4+ {[%emt 0:00:30]} 46. Kg1 {[%emt 0:00:30]} Qd4+ {[%emt 0:00:30]} 47. Kh1 {[%emt 0:00:30] And now Qg7+ would win.} Qg4 {[%emt 0:00:30]} 48. Qh7 {[%emt 0:00:30]} Qh4+ {[%emt 0:00:30]} 49. Kg1 {[%emt 0:00:30]} Qe1+ {[%emt 0:00:30]} 50. Kh2 {[%emt 0:00:30] White threatens Qe7+ and mate.} Qh4+ {[%emt 0:00:30]} 51. Kg1 {[%emt 0:00:30]} Qd4+ {[%emt 0:00:30] Black had all chances to win.  Weighted Error Value: White=0.11 (very precise) /Black=0.11 (very precise)} 1/2-1/2

[Event "13th Chennai Open 2022"]
[Site "Chennai"]
[Date "2022.06.24"]
[Round "8.8"]
[White "Baghdasaryan, Vahe"]
[Black "Nguyen, Duc Hoa"]
[Result "1-0"]
[ECO "B96"]
[WhiteElo "2267"]
[BlackElo "2398"]
[Annotator "TA"]
[PlyCount "91"]
[EventDate "2022.06.19"]
[EventType "swiss"]
[EventCountry "IND"]
[SourceTitle "playchess.com"]
[Source "ChessBase"]
[SourceQuality "1"]
[TimeControl "5400+30"]

{[%evp 16,91,22,14,25,30,13,3,19,-7,25,24,65,65,65,63,76,68,72,54,70,49,89,97,122,87,92,84,156,72,97,95,131,78,77,70,72,70,70,70,139,-100,-120,-809,-739,-720,-301,-597,-598,-643,-628,-624,-614,-416,-598,-581,-552,-468,-62,-62,-65,-45,-41,-69,0,-161,-164,-150,102,100,100,100,104,89,83,83,298,66]} 1. e4 {[%emt 0:00:30]} c5 {[%emt 0:00:30]} 2. Nf3 {[%emt 0:00:30]} d6 {[%emt 0:00:30]} 3. d4 {[%emt 0:00:30]} cxd4 {[%emt 0:00:30]} 4. Nxd4 {[%emt 0:00:30]} Nf6 {[%emt 0:00:30]} 5. Nc3 {[%emt 0:00:30]} a6 {[%emt 0:00:30]} 6. Bg5 {[%emt 0:00:30]} e6 {[%emt 0:00:30]} 7. f4 {[%emt 0:00:30]} h6 {[%emt 0:00:30]} 8. Bh4 {[%emt 0:00:30]} Qb6 {[%emt 0:00:30]} 9. a3 {[%emt 0:00:30]} Be7 {[%emt 0:00:30][%cal Of6e4] B96: Sicilian Najdorf: 6 Bg5 e6 7 f4, lines other than 7...Qb6 and 7...Be7.} (9... Qxb2 $2 10. Na4 Qxa1 11. Qxa1 $18) 10. Bf2 {[%emt 0:00:30][%cal Od4e6]} Qc7 {[%emt 0:00:30]} (10... Qxb2 $2 11. Na4 Qxa1 12. Qxa1 $18) 11. Qe2 {[%emt 0:00:30]} Nc6 {[%emt 0:00:30] The position is equal.} 12. O-O-O {[%emt 0:00:30][%cal Ba1d1,Bd1d4,Bd4c4][%mdl 32] [#]} O-O $146 {[%emt 0:00:30]} ({Predecessor:} 12... Nxd4 13. Rxd4 b5 14. g4 e5 15. Rd3 exf4 16. Rg1 Be6 17. Nd5 Bxd5 18. exd5 Nd7 {1-0 (56) Kotronias,V (2597)-Hagen,A (2453) Plovdiv 2012}) 13. g4 {[%emt 0:00:30]} Nxd4 {[%emt 0:00:30]} (13... e5 {with more complications.} 14. Nf5 exf4 15. h4 f3) 14. Rxd4 {[%emt 0:00:30]} e5 {[%emt 0:00:30]} 15. Rc4 {[%emt 0:00:30]} Qd8 {[%emt 0:00:30]} 16. g5 {[%emt 0:00:30]} hxg5 {[%emt 0:00:30]} 17. fxg5 {[%emt 0:00:30]} Bg4 {[%emt 0:00:30]} 18. Qd2 {[%emt 0:00:30]} Nd7 {[%emt 0:00:30]} 19. h4 {[%emt 0:00:30]} Nc5 {[%emt 0:00:30]} 20. Nd5 {[%emt 0:00:30]} b5 {[%emt 0:00:30]} 21. Rb4 {[%emt 0:00:30]} Be6 {[%emt 0:00:30]} (21... Rb8 $142) 22. Rg1 {[%emt 0:00:30]} (22. Be3 $142 $1) 22... Rc8 {[%emt 0:00:30]} 23. Kb1 {[%emt 0:00:30]} a5 {[%emt 0:00:30] [#]} 24. Bxc5 {[%emt 0:00:30] White is more active.} Bxd5 $16 {[%emt 0:00:30] [#]} 25. exd5 $1 {[%emt 0:00:30][%cal Ob4b5]} axb4 {[%emt 0:00:30]} 26. Bxb4 {[%emt 0:00:30] This bishop pair is nice.} Qb6 {[%emt 0:00:30]} 27. Rg3 {[%emt 0:00:30]} f5 {[%emt 0:00:30]} (27... g6 $14) 28. g6 $2 {[%emt 0:00:30]} (28. gxf6 $1 $16 Rxf6 29. Bh3) 28... f4 $17 {[%emt 0:00:30]} (28... Bxh4 29. Qh2 Qd4 30. Bxb5 $14 (30. Rd3 Qf2 $14)) 29. Bh3 $2 {[%emt 0:00:30][%mdl 8192]} fxg3 $19 {[%emt 0:00:30]} 30. Qe2 {[%emt 0:00:30] [#]} Rf1+ {[%emt 0:00:30]} 31. Ka2 $2 {[%emt 0:00:30] [#]} (31. Bxf1 Qf2 32. Qxf2 gxf2 33. b3) 31... Qd4 $1 {[%emt 0:00:30]} 32. Be6+ {[%emt 0:00:30]} (32. Bxf1 Qc4+) 32... Kf8 {[%emt 0:00:30] ( -> ...g2)} 33. Qxf1+ {[%emt 0:00:30]} Qf4 {[%emt 0:00:30]} 34. Qd1 {[%emt 0:00:30] [#]} g2 $1 {[%emt 0:00:30]} 35. Bh3 {[%emt 0:00:30][%cal Be6h3,Bh3f1,Bf1b5][%mdl 32]} Qc4+ {[%emt 0:00:30]} 36. Ka1 {[%emt 0:00:30]} Qf1 {[%emt 0:00:30]} ({Better is} 36... Qxc2 $19 37. Qf3+ Bf6 38. Bxd6+ Ke8 39. Bxg2 (39. Qg4 $2 g1=Q+ 40. Qxg1 e4 $19) 39... Qc1+ 40. Ka2 Rc2) 37. Qxf1+ $15 {[%emt 0:00:30]} gxf1=Q+ {[%emt 0:00:30]} 38. Bxf1 {[%emt 0:00:30]} Rxc2 {[%emt 0:00:30]} 39. Bxb5 {[%emt 0:00:30][%mdl 4096] Endgame KRB-KB} e4 {[%emt 0:00:30]} (39... Rh2 $15) 40. Kb1 $2 {[%emt 0:00:30] [#]} (40. a4 $1 $11 {and White is okay.}) 40... Rg2 $1 $19 {[%emt 0:00:30]} 41. a4 {[%emt 0:00:30]} Bf6 $2 {[%emt 0:00:30]} (41... Rxg6 $17 {and life is bright.} 42. h5 Rg2) 42. Bxd6+ $16 {[%emt 0:00:30]} Kg8 {[%emt 0:00:30]} 43. Bc5 {[%emt 0:00:30] Strongly threatening d6.} Rxb2+ {[%emt 0:00:30]} 44. Kc1 {[%emt 0:00:30] Threatens to win with d6.} Rb3 {[%emt 0:00:30] Hoping for ...Rc3+.} 45. Kd2 {[%emt 0:00:30] d6 is the strong threat.} Rc3 $2 {[%emt 0:00:30] [#]} (45... Bd8 $16 {might work better.}) 46. Bd6 $2 {[%emt 0:00:30] Weighted Error Value: White=0.58/Black=0.50} (46. Bb6 $1 $18) 1-0

[Event "13th Chennai Open 2022"]
[Site "Chennai"]
[Date "2022.06.24"]
[Round "8.9"]
[White "Hari Madhavan N B"]
[Black "Prasannaa.s"]
[Result "0-1"]
[ECO "E60"]
[WhiteElo "2374"]
[BlackElo "2164"]
[Annotator "TA"]
[PlyCount "27"]
[EventDate "2022.06.19"]
[EventType "swiss"]
[EventCountry "IND"]
[SourceTitle "playchess.com"]
[Source "ChessBase"]
[SourceQuality "1"]
[TimeControl "5400+30"]

{[%evp 9,27,0,-5,-46,-32,-34,-38,-73,-59,-80,-81,-79,-79,-120,-120,-161,-164,-166,-123,-165]} 1. d4 {[%emt 0:00:03]} Nf6 {[%emt 0:04:41]} 2. c4 {[%emt 0:00:07]} g6 {[%emt 0:00:45]} 3. h4 {[%emt 0:00:05]} Bg7 {[%emt 0:03:24]} 4. Nc3 {[%emt 0:00:06]} d5 {[%emt 0:04:02]} 5. cxd5 {[%emt 0:00:08]} Nxd5 {[%emt 0:00:06][%cal Oc7c5]} 6. h5 {[%emt 0:00:22] E60: King's Indian: Unusual lines and Fianchetto Variation without Nc3.} c5 $1 {[%emt 0:05:21]} 7. Nf3 {[%emt 0:19:22]} Nc6 {[%emt 0:01:12][%cal Rc5d4]} 8. h6 {[%emt 0:04:34] [#] Black is slightly better.} Bf6 {[%emt 0:00:33] Hoping for ...Nxc3.} ({Don't do} 8... Bxd4 9. Nxd5 Qxd5 10. e3 $16) 9. Ne4 {[%emt 0:01:28]} cxd4 {[%emt 0:00:33] [#]} ({Much weaker is} 9... Nxd4 $6 10. Nxd4 cxd4 11. Nxf6+ Nxf6 12. e3 $11) 10. Nxf6+ $146 {[%emt 0:00:05]} ({Predecessor:} 10. b4 Ncxb4 11. Bb2 Qa5 12. Nfd2 Nc3 13. Nxf6+ exf6 14. Qb3 Be6 {0-1 (14) Erigaisi,A (2563)-Vakhidov,D (2177) Chess.com INT 2020}) 10... Nxf6 {[%emt 0:00:16]} 11. Rh4 {[%emt 0:02:34][%cal Rf3d4]} Bg4 {[%emt 0:04:57]} 12. Nh2 {[%emt 0:01:50] [#]} Be6 {[%emt 0:10:39]} 13. Nf3 {[%emt 0:02:23][%cal Rf3d4]} Qa5+ {[%emt 0:01:44]} 14. Qd2 {[%emt 0:08:42] Weighted Error Value: White=0.19 (very precise) /Black=0.04 (flawless)} 0-1

[Event "13th Chennai Open 2022"]
[Site "Chennai"]
[Date "2022.06.24"]
[Round "8.10"]
[White "Vignesh B"]
[Black "Gusain, Himal"]
[Result "0-1"]
[ECO "A06"]
[WhiteElo "2072"]
[BlackElo "2396"]
[Annotator "TA"]
[PlyCount "83"]
[EventDate "2022.06.19"]
[EventType "swiss"]
[EventCountry "IND"]
[SourceTitle "playchess.com"]
[Source "ChessBase"]
[SourceQuality "1"]
[TimeControl "5400+30"]

{[%evp 9,83,45,48,12,10,6,18,-5,0,-8,-10,2,10,6,9,0,20,19,17,-4,-18,-8,-8,-5,-13,0,0,-12,0,-47,-55,-58,-35,-41,-44,-41,-51,-51,-34,-31,-49,-100,-68,-133,-149,-139,-150,-129,-89,-94,-93,-106,-85,-79,-54,-55,-56,-54,-67,-195,-190,-204,-203,-302,-279,-343,-329,-442,-441,-397,-358,-390,-385,-947,-904,-1229]} 1. Nf3 {[%emt 0:00:04]} d5 {[%emt 0:04:46]} 2. b3 {[%emt 0:00:07]} c5 {[%emt 0:00:22]} 3. Bb2 {[%emt 0:00:05]} f6 {[%emt 0:00:06]} 4. e3 {[%emt 0:00:36]} Nc6 {[%emt 0:00:07]} 5. d4 {[%emt 0:00:20]} Bg4 {[%emt 0:00:22]} 6. Nbd2 {[%emt 0:01:59] A06: Réti Opening: 1 Nf3 d5.} cxd4 {[%emt 0:03:25]} 7. exd4 {[%emt 0:00:13]} e6 {[%emt 0:00:04]} 8. Bb5 {[%emt 0:09:15] [#] The position is equal.} a6 $146 {[%emt 0:04:55]} ({Predecessor:} 8... Bd6 9. O-O Nge7 10. Re1 O-O 11. h3 Bxf3 12. Nxf3 Qd7 13. Qe2 a6 14. Bxc6 Nxc6 15. Qxe6+ Qxe6 16. Rxe6 {½-½ (39) Korcz,S-Holczbauer,F (1696) Hungary 2010}) 9. Bxc6+ {[%emt 0:00:50]} bxc6 {[%emt 0:00:05]} 10. Qe2 {[%emt 0:01:04]} Qd7 {[%emt 0:00:41]} 11. h3 {[%emt 0:03:39]} Bh5 {[%emt 0:02:05]} 12. O-O-O {[%emt 0:11:17]} Bd6 {[%emt 0:00:49]} 13. g4 {[%emt 0:02:31]} Bf7 {[%emt 0:00:08]} 14. Ne1 {[%emt 0:00:15]} Ne7 {[%emt 0:00:10]} 15. Nd3 {[%emt 0:00:21]} Ng6 {[%emt 0:00:55] Against f4} 16. h4 Nf4 {[%emt 0:00:30]} 17. Nxf4 Bxf4 {[%emt 0:00:30]} 18. Ba3 a5 {[%emt 0:00:30]} 19. Kb2 (19. Bc5 $11 {is more appropriate.}) 19... a4 $15 {[%emt 0:00:30]} 20. Bc5 {[%cal Og4g5]} axb3 {[%emt 0:00:30]} (20... Bd6 $5 {[%cal Re8g8]}) 21. axb3 {[#] Hoping for Ra1.} Bd6 $1 {[%emt 0:00:30] This bishop pair is nice.} 22. Ra1 O-O {[%emt 0:00:30]} 23. Bxd6 Qxd6 {[%emt 0:00:30]} 24. Qe3 e5 {[%emt 0:00:30]} 25. Nf3 ({White should play} 25. dxe5 $15 fxe5 26. f3) 25... Rae8 $17 {[%emt 0:00:30]} 26. dxe5 ({Better is} 26. Qc3 $15) 26... fxe5 {[%emt 0:00:30] Threatens to win with ...d4.} 27. Ng5 e4 {[%emt 0:00:30]} 28. Rhd1 h6 {[%emt 0:00:30]} 29. Nxf7 Rxf7 {[%emt 0:00:30]} 30. Ra6 Qf6+ {[%emt 0:00:30]} 31. Qc3 Rc8 {[%emt 0:00:30]} ({Reject} 31... Qxf2 32. Qxc6 Qf6+ 33. Qxf6 gxf6 34. Rxd5 $11) 32. Qxf6 Rxf6 $15 {[%emt 0:00:30][%mdl 4096] Endgame KRR-KRR} 33. Rd2 $1 Rf4 {[%emt 0:00:30]} 34. Kc3 {This move loses the game for White.} (34. g5 $1 $15) 34... Rxg4 $19 {[%emt 0:00:30]} 35. Kd4 Rxh4 {[%emt 0:00:30][%cal Bg4h4,Bh4h3,Bh3f3][%mdl 32]} 36. Kc5 (36. c4 {was worth a try.}) 36... Rh3 {[%emt 0:00:30]} 37. Kd6 Rf3 {[%emt 0:00:30]} 38. Kd7 Rcf8 {[%emt 0:00:30]} 39. Kxc6 R8f6+ {[%emt 0:00:30]} 40. Kb7 Rxf2 {[%emt 0:00:30]} 41. Rxf2 {[#]} (41. Rxd5 Rf7+ 42. Kb6) 41... Rxf2 {[%emt 0:00:30]} 42. c3 {Weighted Error Value: White=0.31/Black=0.05 (flawless)} 0-1

[Event "13th Chennai Open 2022"]
[Site "Chennai"]
[Date "2022.06.24"]
[Round "8.11"]
[White "Ravichandran, Siddharth"]
[Black "Ghosh Samriddhaa"]
[Result "1-0"]
[ECO "A01"]
[WhiteElo "2352"]
[BlackElo "1844"]
[Annotator "TA"]
[PlyCount "85"]
[EventDate "2022.06.19"]
[EventType "swiss"]
[EventCountry "IND"]
[SourceTitle "playchess.com"]
[Source "ChessBase"]
[SourceQuality "1"]
[TimeControl "5400+30"]

{[%evp 13,85,18,30,32,33,30,29,27,27,32,29,30,31,31,29,20,45,31,52,0,0,0,17,-16,76,70,79,86,72,75,136,3,67,57,190,190,180,198,191,182,275,279,283,305,295,239,251,251,250,193,185,0,239,182,250,229,315,222,413,408,408,387,604,354,590,575,575,402,784,784,779,775,5406,5127]} 1. b3 {[%emt 0:00:12]} e5 {[%emt 0:00:42]} 2. Bb2 {[%emt 0:00:09]} Nc6 {[%emt 0:00:46]} 3. e3 {[%emt 0:00:30]} d5 {[%emt 0:04:25]} 4. Bb5 {[%emt 0:00:12]} Bd6 {[%emt 0:01:26]} 5. f4 {[%emt 0:00:36]} Qh4+ {[%emt 0:01:27]} 6. g3 {[%emt 0:00:09]} Qe7 {[%emt 0:00:11]} 7. Nf3 {[%emt 0:00:26]} Bg4 {[%emt 0:07:36]} 8. fxe5 {[%emt 0:04:14] A01: Nimzowitsch-Larsen Opening.} (8. Bxe5 {seems wilder.} Bxe5 9. fxe5 O-O-O 10. Bxc6 bxc6 11. Nc3) 8... Bxe5 {[%emt 0:01:27]} 9. Bxe5 {[%emt 0:01:09]} Bxf3 {[%emt 0:00:21][%mdl 64] [#] Remove Defender} 10. Qxf3 {[%emt 0:00:08] White has an edge.} Qxe5 {[%emt 0:00:11]} 11. Nc3 {[%emt 0:00:19]} Nf6 {[%emt 0:02:11]} 12. O-O-O {[%emt 0:04:43]} O-O {[%emt 0:07:47]} 13. d4 {[%emt 0:01:17] [#]} Qd6 $146 {[%emt 0:04:16] Strongly threatening ...Qa3+.} ({Predecessor:} 13... Qe6 14. Rhe1 a6 15. Bd3 Nb4 16. Bf5 Qd6 17. g4 g6 18. g5 Nh5 19. Bg4 Qxh2 {1-0 (30) Stolz,S (2316)-Hughes,C (830) LSS email 2015}) 14. Kb2 {[%emt 0:00:53] Prevents Qa3+.} Rae8 {[%emt 0:03:25]} (14... a5 {is more complex.} 15. a3 a4 16. Nxa4 Ne4) 15. g4 {[%emt 0:12:13]} Qe6 {[%emt 0:19:11][%csl LRe3,LRg4]} 16. Rde1 {[%emt 0:06:45]} (16. Rhe1 $14) 16... a6 $11 {[%emt 0:09:25]} 17. Bd3 {[%emt 0:05:34] next Bf5 is good for White.} Qxg4 {[%emt 0:06:29]} 18. Qf2 {[%emt 0:05:47]} Ne4 {[%emt 0:02:12]} (18... Qe6 $11) 19. Bxe4 $16 {[%emt 0:04:09]} dxe4 {[%emt 0:02:26]} 20. Rhg1 {[%emt 0:00:09]} Qf3 {[%emt 0:03:09]} 21. Qh4 {[%emt 0:03:47]} Ne7 {[%emt 0:05:27]} (21... g6 $2 22. Nd5 Re6 23. Nf4 $18) (21... f6 $142) 22. Qg5 {[%emt 0:03:52] White is more active.} ({But not} 22. Qxe4 $6 Qxe4 23. Nxe4 Nd5 $11) ({White must play} 22. Nxe4 $16 Ng6 {[#]} 23. Qxh7+ $3 {[%mdl 512]} Kxh7 24. Ng5+ Kg8 25. Nxf3) 22... Ng6 {[%emt 0:03:12]} (22... g6 $1 $11) 23. Rg3 $1 $40 {[%emt 0:06:47][%mdl 128] White attacks.} Qf6 {[%emt 0:01:57]} ({Better is} 23... h6 $14 24. Qd5 c6) 24. Qxf6 $18 {[%emt 0:01:36]} gxf6 {[%emt 0:00:02]} 25. Nd5 {[%emt 0:00:13][%csl LRc7,LRf6]} Kg7 {[%emt 0:07:07]} 26. Nxc7 {[%emt 0:00:55]} Rc8 {[%emt 0:01:40]} (26... Rd8 $142) 27. Nd5 {[%emt 0:00:11]} b5 {[%emt 0:00:46]} 28. Rf1 {[%emt 0:01:53]} Rc6 {[%emt 0:01:19]} 29. h4 {[%emt 0:08:44] h5 is the strong threat.} h5 {[%emt 0:01:21]} 30. Rf5 {[%emt 0:05:34]} Rh8 {[%emt 0:00:35]} 31. Rf2 {[%emt 0:02:22]} Rd8 {[%emt 0:02:46]} 32. Rf5 {[%emt 0:00:15]} (32. Nc3 $142) 32... Rh8 $1 {[%emt 0:00:04]} 33. c3 {[%emt 0:04:19]} Rh6 {[%emt 0:00:47]} (33... Kf8 $142 34. Nxf6 (34. Rxf6 Rxf6 35. Nxf6 Nxh4 $16) 34... Nxh4) 34. Rf2 {[%emt 0:02:34] And now Ne7 would win.} Re6 {[%emt 0:00:43] Inhibits Ne7.} 35. Nc7 {[%emt 0:00:51]} Rc6 $2 {[%emt 0:00:31]} (35... f5 {was called for.} 36. Nxe6+ fxe6) 36. Ne8+ {[%emt 0:00:17]} Kf8 {[%emt 0:00:06]} 37. Nxf6 {[%emt 0:00:08]} Nxh4 {[%emt 0:00:56]} (37... Ne7 $142) 38. Rg8+ {[%emt 0:00:31]} Ke7 {[%emt 0:00:20]} 39. Re8+ {[%emt 0:00:17]} Kd6 {[%emt 0:00:02]} 40. Rxe4 {[%emt 0:01:34]} Kc7 {[%emt 0:01:06]} (40... Ng6 $142 41. Re8 Rh8 42. Rxh8 Nxh8 43. Nxh5 Ke7) 41. Nd5+ {[%emt 0:01:14] White is clearly winning.} Kd6 {[%emt 0:00:16]} 42. Nb4 {[%emt 0:00:23]} Ng6 {[%emt 0:00:49]} 43. Rf6+ {[%emt 0:00:09] Weighted Error Value: White=0.31/Black=0.40} 1-0